fUST/lending_fUST_20251129
["ID","MTS","AMOUNT","RATE_DAILY","PERIOD"]
[395043229,1764369032907,-500.0,0.00016438,2]
[395043231,1764369032916,-500.0,0.00016438,2]
[395043234,1764369032926,-500.0,0.00016438,2]
[395043235,1764369032935,-29.05957596,0.00016438,2]
[395043239,1764369032955,-470.94042404,0.00016438,2]
[395043241,1764369032964,-126.27887155,0.00016438,2]
[395043266,1764369038419,-373.72112845,0.00016438,2]
[395043267,1764369038428,-500.0,0.00016438,2]
[395043268,1764369038438,-536.24,0.00016438,2]
[395043269,1764369038448,-500.0,0.00016438,2]
[395043270,1764369038458,-500.0,0.00016438,2]
[395043271,1764369038467,-500.0,0.00016438,2]
[395043272,1764369038477,-500.0,0.00016438,2]
[395043273,1764369038487,-500.0,0.00016438,2]
[395043274,1764369038497,-500.0,0.00016438,2]
[395043275,1764369038507,-500.0,0.00016438,2]
[395043276,1764369038516,-524.36,0.00016438,2]
[395043277,1764369038526,-500.0,0.00016438,2]
[395043278,1764369038535,-729.3,0.00016438,2]
[395043279,1764369038545,-553.16,0.00016438,2]
[395043280,1764369038554,-500.0,0.00016438,2]
[395043281,1764369038564,-500.0,0.00016438,2]
[395043282,1764369038573,-471.00113019,0.00016438,2]
[395043283,1764369038583,-500.0,0.00016438,2]
[395043285,1764369038593,-500.0,0.00016438,2]
[395043287,1764369038602,-500.0,0.00016438,2]
[395043289,1764369038612,-159.2868009,0.00016438,2]
[395043291,1764369038622,-1719.35,0.00016438,2]
[395043293,1764369038631,-500.0,0.00016438,2]
[395043295,1764369038641,-500.0,0.00016438,2]
[395043297,1764369038650,-815.01,0.00016438,2]
[395043299,1764369038660,-500.0,0.00016438,2]
[395043301,1764369038670,-500.0,0.00016438,2]
[395043302,1764369038681,-500.0,0.00016438,2]
[395043304,1764369038691,-500.0,0.00016438,2]
[395043305,1764369038700,-500.0,0.00016438,2]
[395043307,1764369038710,-954.36,0.00016438,2]
[395043310,1764369038719,-500.0,0.00016438,2]
[395043311,1764369038729,-500.0,0.00016438,2]
[395043313,1764369038738,-500.0,0.00016438,2]
[395043315,1764369038748,-500.0,0.00016438,2]
[395043318,1764369038758,-500.0,0.00016438,2]
[395043320,1764369038768,-500.0,0.00016438,2]
[395043322,1764369038779,-483.62695819,0.00016438,2]
[395043324,1764369038788,-545.511597,0.00016438,2]
[395043326,1764369038797,-598.08128464,0.00016438,2]
[395043328,1764369038806,-500.0,0.00016438,2]
[395043330,1764369038815,-500.0,0.00016438,2]
[395043332,1764369038825,-500.0,0.00016438,2]
[395043333,1764369038835,-814.57,0.00016438,2]
[395043335,1764369038844,-553.18,0.00016438,2]
[395043337,1764369038854,-500.0,0.00016438,2]
[395043339,1764369038864,-820.92,0.00016438,2]
[395043341,1764369038873,-500.0,0.00016438,2]
[395043361,1764369039235,-1943.66,0.00016438,2]
[395043362,1764369039254,-500.0,0.00016438,2]
[395043363,1764369039266,-500.0,0.00016438,2]
[395043364,1764369039276,-500.0,0.00016438,2]
[395043365,1764369039286,-500.0,0.00016438,2]
[395043366,1764369039296,-907.51,0.00016438,2]
[395043367,1764369039309,-500.0,0.00016438,2]
[395043368,1764369039318,-520.61,0.00016438,2]
[395043369,1764369039328,-500.0,0.00016438,2]
[395043370,1764369039337,-500.0,0.00016438,2]
[395043371,1764369039347,-500.0,0.00016438,2]
[395043373,1764369039356,-500.0,0.00016438,2]
[395043375,1764369039365,-500.0,0.00016438,2]
[395043377,1764369039375,-694.94,0.00016438,2]
[395043379,1764369039384,-500.0,0.00016438,2]
[395043381,1764369039394,-500.0,0.00016438,2]
[395043383,1764369039404,-519.82,0.00016438,2]
[395043385,1764369039413,-500.0,0.00016438,2]
[395043387,1764369039422,-1466.9,0.00016438,2]
[395043389,1764369039432,-803.67,0.00016438,2]
[395043391,1764369039441,-500.0,0.00016438,2]
[395043393,1764369039450,-559.69,0.00016438,2]
[395043395,1764369039459,-500.0,0.00016438,2]
[395043397,1764369039468,-301.65729018,0.00016438,2]
[395043399,1764369039478,-748.88,0.00016438,2]
[395043400,1764369039488,-500.0,0.00016438,2]
[395043402,1764369039499,-1236.55,0.00016438,2]
[395043403,1764369039511,-500.0,0.00016438,2]
[395043404,1764369039520,-500.0,0.00016438,2]
[395043405,1764369039530,-597.54,0.00016438,2]
[395043406,1764369039539,-500.0,0.00016438,2]
[395043407,1764369039549,-500.0,0.00016438,2]
[395043408,1764369039559,-500.0,0.00016438,2]
[395043409,1764369039568,-711.31,0.00016438,2]
[395043410,1764369039578,-500.0,0.00016438,2]
[395043411,1764369039589,-500.0,0.00016438,2]
[395043413,1764369039598,-500.0,0.00016438,2]
[395043414,1764369039608,-500.0,0.00016438,2]
[395043415,1764369039618,-500.0,0.00016438,2]
[395043416,1764369039628,-500.0,0.00016438,2]
[395043417,1764369039638,-500.0,0.00016438,2]
[395043418,1764369039647,-1168.05,0.00016438,2]
[395043419,1764369039657,-500.0,0.00016438,2]
[395043420,1764369039668,-500.0,0.00016438,2]
[395043421,1764369039678,-500.0,0.00016438,2]
[395043422,1764369039688,-500.0,0.00016438,2]
[395043423,1764369039698,-620.83,0.00016438,2]
[395043424,1764369039708,-515.49,0.00016438,2]
[395043425,1764369039718,-500.0,0.00016438,2]
[395043426,1764369039727,-515.14,0.00016438,2]
[395043427,1764369039737,-500.0,0.00016438,2]
[395043428,1764369039747,-500.0,0.00016438,2]
[395043429,1764369039756,-618.97,0.00016438,2]
[395043430,1764369039767,-399.23658153,0.00016438,2]
[395043431,1764369039776,-500.0,0.00016438,2]
[395043432,1764369039786,-500.0,0.00016438,2]
[395043433,1764369039795,-1375.41,0.00016438,2]
[395043434,1764369039805,-500.0,0.00016438,2]
[395043435,1764369039815,-593.28,0.00016438,2]
[395043436,1764369039824,-404.79775503,0.00016438,2]
[395043437,1764369039833,-500.0,0.00016438,2]
[395043438,1764369039843,-1656.92,0.00016438,2]
[395043439,1764369039853,-500.0,0.00016438,2]
[395043440,1764369039862,-500.0,0.00016438,2]
[395043441,1764369039871,-665.78,0.00016438,2]
[395043442,1764369039881,-500.0,0.00016438,2]
[395043443,1764369039890,-500.0,0.00016438,2]
[395043444,1764369039899,-500.0,0.00016438,2]
[395043445,1764369039908,-500.0,0.00016438,2]
[395043446,1764369039918,-500.0,0.00016438,2]
[395043447,1764369039927,-500.0,0.00016438,2]
[395043448,1764369039937,-500.0,0.00016438,2]
[395043449,1764369039946,-500.0,0.00016438,2]
[395043450,1764369039956,-504.32,0.00016438,2]
[395043451,1764369039965,-500.0,0.00016438,2]
[395043452,1764369039975,-1110.08,0.00016438,2]
[395043453,1764369039985,-500.0,0.00016438,2]
[395043454,1764369039994,-614.92,0.00016438,2]
[395043455,1764369040003,-500.0,0.00016438,2]
[395043456,1764369040012,-500.0,0.00016438,2]
[395043457,1764369040022,-500.0,0.00016438,2]
[395043458,1764369040031,-500.0,0.00016438,2]
[395043459,1764369040041,-500.0,0.00016438,2]
[395043460,1764369040050,-500.0,0.00016438,2]
[395043461,1764369040060,-806.22,0.00016438,2]
[395043462,1764369040070,-673.96,0.00016438,2]
[395043463,1764369040080,-500.0,0.00016438,2]
[395043464,1764369040089,-561.47,0.00016438,2]
[395043465,1764369040100,-500.0,0.00016438,2]
[395043466,1764369040110,-500.0,0.00016438,2]
[395043467,1764369040120,-586.52,0.00016438,2]
[395043468,1764369040129,-500.0,0.00016438,2]
[395043469,1764369040138,-500.0,0.00016438,2]
[395043470,1764369040148,-500.0,0.00016438,2]
[395043471,1764369040157,-500.0,0.00016438,2]
[395043472,1764369040167,-500.0,0.00016438,2]
[395043474,1764369040177,-500.0,0.00016438,2]
[395043475,1764369040187,-500.0,0.00016438,2]
[395043476,1764369040197,-606.55402851,0.00016438,2]
[395043477,1764369040206,-500.0,0.00016438,2]
[395043478,1764369040216,-621.5,0.00016438,2]
[395043479,1764369040232,-500.0,0.00016438,2]
[395043480,1764369040246,-500.0,0.00016438,2]
[395043481,1764369040257,-500.0,0.00016438,2]
[395043482,1764369040268,-2315.89,0.00016438,2]
[395043483,1764369040277,-500.0,0.00016438,2]
[395043484,1764369040286,-691.71,0.00016438,2]
[395043485,1764369040297,-500.0,0.00016438,2]
[395043487,1764369040307,-500.0,0.00016438,2]
[395043489,1764369040316,-500.0,0.00016438,2]
[395043491,1764369040328,-500.0,0.00016438,2]
[395043493,1764369040338,-563.67,0.00016438,2]
[395043495,1764369040348,-500.0,0.00016438,2]
[395043497,1764369040357,-500.0,0.00016438,2]
[395043499,1764369040367,-835.18,0.00016438,2]
[395043501,1764369040376,-500.0,0.00016438,2]
[395043503,1764369040386,-500.0,0.00016438,2]
[395043505,1764369040397,-500.0,0.00016438,2]
[395043507,1764369040406,-535.07,0.00016438,2]
[395043509,1764369040416,-500.0,0.00016438,2]
[395043511,1764369040426,-500.0,0.00016438,2]
[395043513,1764369040436,-679.27,0.00016438,2]
[395043515,1764369040446,-500.0,0.00016438,2]
[395043516,1764369040455,-500.0,0.00016438,2]
[395043517,1764369040465,-500.0,0.00016438,2]
[395043518,1764369040474,-500.0,0.00016438,2]
[395043521,1764369040484,-500.0,0.00016438,2]
[395043522,1764369040493,-500.0,0.00016438,2]
[395043523,1764369040503,-639.21,0.00016438,2]
[395043524,1764369040512,-500.0,0.00016438,2]
[395043525,1764369040522,-500.0,0.00016438,2]
[395043526,1764369040531,-500.0,0.00016438,2]
[395043527,1764369040541,-423.30840617,0.00016438,2]
[395043528,1764369040550,-500.0,0.00016438,2]
[395043529,1764369040559,-500.0,0.00016438,2]
[395043530,1764369040569,-500.0,0.00016438,2]
[395043531,1764369040578,-1583.75,0.00016438,2]
[395043532,1764369040587,-500.0,0.00016438,2]
[395043533,1764369040597,-500.0,0.00016438,2]
[395043534,1764369040607,-500.0,0.00016438,2]
[395043535,1764369040617,-500.0,0.00016438,2]
[395043536,1764369040626,-500.0,0.00016438,2]
[395043537,1764369040636,-687.41,0.00016438,2]
[395043538,1764369040645,-500.0,0.00016438,2]
[395043539,1764369040655,-500.0,0.00016438,2]
[395043540,1764369040664,-500.0,0.00016438,2]
[395043541,1764369040674,-894.03,0.00016438,2]
[395043542,1764369040683,-1171.63,0.00016438,2]
[395043543,1764369040694,-553.82,0.00016438,2]
[395043544,1764369040704,-500.0,0.00016438,2]
[395043545,1764369040713,-500.0,0.00016438,2]
[395043546,1764369040722,-744.58,0.00016438,2]
[395043547,1764369040732,-581.86,0.00016438,2]
[395043548,1764369040741,-3968.6,0.00016438,2]
[395043549,1764369040752,-1148.69,0.00016438,2]
[395043550,1764369040762,-500.0,0.00016438,2]
[395043551,1764369040771,-500.0,0.00016438,2]
[395043552,1764369040781,-768.57,0.00016438,2]
[395043553,1764369040790,-2797.18,0.00016438,2]
[395043554,1764369040800,-1471.02,0.00016438,2]
[395043555,1764369040809,-918.07,0.00016438,2]
[395043556,1764369040819,-848.96,0.00016438,2]
[395043557,1764369040828,-500.0,0.00016438,2]
[395043558,1764369040837,-2398.88,0.00016438,2]
[395043559,1764369040846,-500.0,0.00016438,2]
[395043560,1764369040856,-1779.84,0.00016438,2]
[395043561,1764369040865,-500.0,0.00016438,2]
[395043562,1764369040875,-2679.22,0.00016438,2]
[395043563,1764369040885,-734.82,0.00016438,2]
[395043564,1764369040894,-858.72,0.00016438,2]
[395043565,1764369040905,-1299.35,0.00016438,2]
[395043566,1764369040915,-416.44417753,0.00016438,2]
[395043567,1764369040924,-559.27,0.00016438,2]
[395043568,1764369040934,-500.0,0.00016438,2]
[395043569,1764369040943,-500.0,0.00016438,2]
[395043570,1764369040953,-500.0,0.00016438,2]
[395043571,1764369040962,-500.0,0.00016438,2]
[395043572,1764369040972,-611.69167843,0.00016438,2]
[395043573,1764369040981,-500.0,0.00016438,2]
[395043574,1764369040991,-2368.87,0.00016438,2]
[395043575,1764369041001,-500.0,0.00016438,2]
[395043576,1764369041010,-1450.34,0.00016438,2]
[395043577,1764369041020,-586.76,0.00016438,2]
[395043578,1764369041029,-2333.32,0.00016438,2]
[395043579,1764369041039,-500.0,0.00016438,2]
[395043580,1764369041048,-565.22,0.00016438,2]
[395043581,1764369041058,-823.04,0.00016438,2]
[395043582,1764369041067,-1052.34,0.00016438,2]
[395043583,1764369041076,-2933.21,0.00016438,2]
[395043584,1764369041086,-500.0,0.00016438,2]
[395043585,1764369041096,-616.31,0.00016438,2]
[395043586,1764369041106,-1057.55,0.00016438,2]
[395043587,1764369041115,-172.02054384,0.00016438,2]
[395043588,1764369041125,-506.02,0.00016438,2]
[395043589,1764369041134,-500.0,0.00016438,2]
[395043590,1764369041143,-500.0,0.00016438,2]
[395043591,1764369041152,-41.51024229,0.00016438,2]
[395043592,1764369041171,-458.48975771,0.00016438,2]
[395043593,1764369041181,-431.29024229,0.00016438,2]
[395043622,1764369046743,-150.19183427,0.00016274,2]
[395043626,1764369046777,-500.0,0.00016274,2]
[395043630,1764369062730,247.6425,0.00013699,2]
[395043631,1764369068626,118.91455947,8.996e-05,2]
[395043632,1764369068646,90.25701624,8.996e-05,2]
[395043670,1764369970648,207.75484789,8.996e-05,2]
[395043672,1764370037088,-212.29557348,0.00014202,2]
[395043673,1764370037110,-212.29557348,0.00014345,2]
[395043674,1764370037131,-212.29557348,0.0001449,2]
[395043675,1764370037159,-500.0,0.00014933,2]
[395043676,1764370037183,-150.0,0.00015,2]
[395043677,1764370037204,-278.0,0.00015372,2]
[395043678,1764370037224,-353.59244258,0.00016155,2]
[395043679,1764370037244,-644.13427791,0.00016217,2]
[395043680,1764370050115,-413.52739312,0.00016055,2]
[395043770,1764370232153,-500.0,0.00015021,2]
[395043772,1764370232163,-206.048837,0.00015157,2]
[395043774,1764370232173,-150.0,0.00015458,2]
[395043776,1764370232183,-154.47175921,0.00015894,2]
[395044055,1764370239884,-500.0,0.00014871,2]
[395044056,1764370239893,-133.23266731,0.00015894,2]
[395044058,1764370239903,-353.59244258,0.00016055,2]
[395044060,1764370239915,-425.07489096,0.0001613,2]
[395044334,1764370245982,-74.92510904,0.0001613,2]
[395044335,1764370245991,-500.0,0.0001613,2]
[395044336,1764370246000,-71.07489096,0.0001613,2]
[395044343,1764370281822,1465.7664,0.00010959,2]
[395044344,1764370281841,534.2336,0.00010959,2]
[395044345,1764370302270,933.42796759,0.0001095,2]
[395044346,1764370610235,300.0,0.0001333,9]
[395044347,1764370673393,500.0,0.00014,10]
[395044348,1764370720462,300.0,0.00012,6]
[395044349,1764370772203,958.099117,9.75e-05,2]
[395044353,1764371168703,225.53380301,8.996e-05,2]
[395044356,1764371228128,-219.42654334,0.00010401,2]
[395044357,1764371228149,-219.42654334,0.00010506,2]
[395044358,1764371228171,-150.0,0.00010665,2]
[395044359,1764371228192,-238.0,0.00010719,2]
[395044360,1764371228213,-403.03847876,0.00010827,2]
[395044361,1764371234201,-1596.96152124,0.00010827,2]
[395044362,1764371234223,-2000.0,0.00010836,2]
[395044363,1764371234244,-453.4317085,0.00010845,2]
[395044364,1764371348123,-1546.5682915,0.00010736,2]
[395044365,1764371348144,-1546.5682915,0.00010845,2]
[395044366,1764371348165,-2000.0,0.00010853,2]
[395044367,1764371348184,-300.0,0.00010861,2]
[395044368,1764371348204,-2000.0,0.00010862,2]
[395044369,1764371348224,-2000.0,0.00010871,2]
[395044370,1764371348245,-300.0,0.00010879,2]
[395044371,1764371348265,-2000.0,0.0001088,2]
[395044372,1764371348284,-2000.0,0.00010889,2]
[395044373,1764371348304,-2000.0,0.00010897,2]
[395044374,1764371348324,-2000.0,0.00010906,2]
[395044375,1764371348344,-947.88194699,0.00010915,2]
[395044376,1764371348363,-2000.0,0.00010915,2]
[395044377,1764371348383,-2000.0,0.00010924,2]
[395044378,1764371348406,-2000.0,0.00010933,2]
[395044379,1764371348426,-2000.0,0.00010933,2]
[395044380,1764371348446,-2000.0,0.00010941,2]
[395044381,1764371348466,-2000.0,0.00010941,2]
[395044382,1764371348487,-194.72792766,0.00010944,2]
[395044383,1764371348506,-1066.57203241,0.0001095,2]
[395044384,1764371348526,-2000.0,0.0001095,2]
[395044385,1764371348545,-2000.0,0.00010959,2]
[395044386,1764371348565,-500.0,0.00011,2]
[395044387,1764371348584,-500.0,0.00011,2]
[395044388,1764371348604,-500.0,0.00011,2]
[395044389,1764371348624,-500.0,0.00011,2]
[395044390,1764371348643,-500.0,0.00011,2]
[395044391,1764371348663,-208.17035759,0.00011337,2]
[395044392,1764371348684,-201.93286099,0.00011492,2]
[395044393,1764371348703,-1000.0,0.00011548,2]
[395044394,1764371348722,-962.84234834,0.00011548,2]
[395044395,1764371348741,-1000.0,0.00011548,2]
[395044396,1764371348759,-1000.0,0.00011548,2]
[395044397,1764371348780,-209.40437684,0.0001204,2]
[395044398,1764371348800,-1500.0,0.00012096,2]
[395044399,1764371348819,-1500.0,0.00012096,2]
[395044400,1764371348839,-334.2885093,0.00012096,2]
[395044401,1764371348861,-217.15233878,0.00012588,2]
[395044402,1764371348885,-469.97082427,0.00012644,2]
[395044403,1764371348905,-2000.0,0.00012644,2]
[395044404,1764371348926,-225.75933681,0.0001265,2]
[395044405,1764371348951,-177.0,0.00012665,2]
[395044406,1764371348972,-225.18697532,0.00013136,2]
[395044407,1764371348992,-233.51889341,0.00013684,2]
[395044408,1764371349012,-242.15909246,0.00014232,2]
[395044409,1764371349032,-353.59244258,0.0001461,2]
[395044410,1764371349051,-204.0,0.00014665,2]
[395044411,1764371349071,-251.11897888,0.0001478,2]
[395044412,1764371357652,195.373265,0.00014918,2]
[395044413,1764371359738,247.21902317,0.00013389,2]
[395044414,1764371363352,-14.2317356,0.00013389,2]
[395044415,1764371376154,555.84461734,0.00010999,2]
[395044416,1764371376211,555.84461734,0.00010999,2]
[395044417,1764371376262,363.94951359,0.00010999,2]
[395044460,1764371437713,-994.06474417,0.00010889,2]
[395044461,1764371437937,-15873.16887978,0.00010889,2]
[395044462,1764371437946,-194.72792766,0.00010943,2]
[395044463,1764371437955,-150.0,0.00010944,2]
[395044464,1764371437964,-318.41606463,0.00010998,2]
[395044465,1764371437972,-500.0,0.00010998,2]
[395044466,1764371437981,-500.0,0.00010998,2]
[395044467,1764371437990,-500.0,0.00010998,2]
[395044468,1764371437999,-500.0,0.00010998,2]
[395044469,1764371438007,-500.0,0.00010998,2]
[395044470,1764371438016,-500.0,0.00010998,2]
[395044471,1764371438026,-500.0,0.00010998,2]
[395044472,1764371438035,-500.0,0.00010998,2]
[395044473,1764371438044,-500.0,0.00010998,2]
[395044474,1764371438054,-500.0,0.00010998,2]
[395044475,1764371438063,-500.0,0.00010998,2]
[395044476,1764371438073,-500.0,0.00010998,2]
[395044477,1764371438082,-500.0,0.00010998,2]
[395044478,1764371438092,-500.0,0.00010998,2]
[395044479,1764371438102,-500.0,0.00010998,2]
[395044480,1764371438111,-500.0,0.00010998,2]
[395044481,1764371438121,-500.0,0.00010998,2]
[395044482,1764371438131,-500.0,0.00010998,2]
[395044483,1764371438141,-500.0,0.00010998,2]
[395044484,1764371438150,-500.0,0.00010998,2]
[395044485,1764371438160,-500.0,0.00010998,2]
[395044486,1764371438170,-500.0,0.00010998,2]
[395044487,1764371438180,-500.0,0.00010998,2]
[395044488,1764371438191,-500.0,0.00010998,2]
[395044489,1764371438200,-500.0,0.00010998,2]
[395044490,1764371438210,-500.0,0.00010998,2]
[395044491,1764371438220,-500.0,0.00010998,2]
[395044492,1764371438230,-500.0,0.00010998,2]
[395044493,1764371438239,-500.0,0.00010998,2]
[395044494,1764371438249,-500.0,0.00010998,2]
[395044495,1764371438258,-500.0,0.00010998,2]
[395044496,1764371438270,-500.0,0.00011,2]
[395044497,1764371438280,-526.6451983,0.00011,2]
[395044498,1764371438290,-201.93286099,0.00011491,2]
[395044499,1764371438300,-1000.0,0.00011548,2]
[395044500,1764371438310,-209.40437684,0.00012039,2]
[395044501,1764371438320,-1500.0,0.00012096,2]
[395044502,1764371438330,-217.15233878,0.00012587,2]
[395044503,1764371438339,-2000.0,0.00012644,2]
[395044504,1764371438350,-177.0,0.00012944,2]
[395044505,1764371438360,-225.18697532,0.00013135,2]
[395044506,1764371438374,-2500.0,0.00013192,2]
[395044507,1764371438383,-233.51889341,0.00013683,2]
[395044508,1764371438393,-2310.20845471,0.0001374,2]
[395044509,1764371438402,-242.15909246,0.00014231,2]
[395044510,1764371438411,-251.11897888,0.00014779,2]
[395044511,1764371438421,-204.0,0.00014944,2]
[395044513,1764371438430,-195.373265,0.00015068,2]
[395044515,1764371438440,-260.4103811,0.00015327,2]
[395044517,1764371438449,-666.0,0.000157,2]
[395044519,1764371438459,-270.0455652,0.00015875,2]
[395044521,1764371438468,-473.10727666,0.00016019,2]
[395044567,1764371440167,-353.59244258,0.00014604,2]
[395044569,1764371440177,-144.44755742,0.00016019,2]
[395044572,1764371440188,-3043.89875273,0.00016019,2]
[395044574,1764371440197,-21925.36568396,0.00016026,2]
[395044669,1764371443247,-55134.8714767,0.00016026,2]
[395044674,1764371468671,196.24458897,8.996e-05,2]
[395044675,1764371481288,256.10831174,9.111e-05,2]
[395044676,1764371553247,152.529283,0.0002,30]
[395044677,1764371772124,244.63629536,9.111e-05,2]
[395044678,1764371772699,359.73259975,8.996e-05,2]
[395044679,1764372092092,180.6183227,8.996e-05,2]
[395044680,1764372116181,238.86657569,9.111e-05,2]
[395044681,1764372124071,180.37948546,8.996e-05,2]
[395044683,1764372196180,238.69776945,9.111e-05,2]
[395044685,1764372210393,152.5107836,9.749e-05,2]
[395044686,1764372218436,152.5107836,9.749e-05,2]
[395044687,1764372227922,152.5107836,9.749e-05,2]
[395044688,1764372244426,79.04656481,9.7e-05,2]
[395044690,1764372302985,568.67857251,9.111e-05,2]
[395044691,1764372338632,306.0,0.0002,20]
[395044692,1764372342269,-70.95343519,9.7e-05,2]
[395044693,1764372342290,-150.0,9.798e-05,2]
[395044694,1764372342314,-150.0,9.897e-05,2]
[395044695,1764372342336,-233.0,0.00010147,2]
[395044696,1764372342358,-359.73259975,0.00011385,2]
[395044697,1764372342381,-177.0,0.00011897,2]
[395044698,1764372342403,-250.0,0.00011928,2]
[395044699,1764372342424,-180.37948546,0.00013526,2]
[395044700,1764372342445,-180.6183227,0.00013597,2]
[395044701,1764372342467,-150.52399161,0.00013698,2]
[395044702,1764372342488,-66.53081759,0.00013699,2]
[395044706,1764372450073,-350.0,0.00013426,2]
[395044707,1764372450094,-150.0,0.00013494,2]
[395044708,1764372450113,-350.0,0.00013562,2]
[395044709,1764372450132,-1088.65894841,0.00013699,2]
[395044710,1764372450152,-359.73259975,0.00013773,2]
[395044711,1764372450171,-568.67857251,0.00013868,2]
[395044712,1764372450191,-271.0,0.00013894,2]
[395044713,1764372450213,-229.0,0.00013894,2]
[395044714,1764372450233,-500.0,0.00013894,2]
[395044715,1764372450260,-500.0,0.00013894,2]
[395044716,1764372450281,-640.05126504,0.00013894,2]
[395044717,1764372450307,-500.0,0.00013894,2]
[395044718,1764372450334,-500.0,0.00013894,2]
[395044719,1764372450360,-500.0,0.00013894,2]
[395044720,1764372450386,-500.0,0.00013894,2]
[395044721,1764372450412,-500.0,0.00013894,2]
[395044722,1764372450438,-500.0,0.00013894,2]
[395044723,1764372450464,-500.0,0.00013894,2]
[395044724,1764372450490,-500.0,0.00013894,2]
[395044725,1764372450518,-500.0,0.00013894,2]
[395044726,1764372450545,-500.0,0.00013894,2]
[395044727,1764372450581,-500.0,0.00013894,2]
[395044728,1764372450608,-500.0,0.00013894,2]
[395044729,1764372450634,-500.0,0.00013894,2]
[395044730,1764372450660,-500.0,0.00013894,2]
[395044731,1764372450686,-500.0,0.00013894,2]
[395044732,1764372450712,-500.0,0.00013894,2]
[395044733,1764372450739,-410.99037335,0.00013894,2]
[395044734,1764372450764,-500.0,0.00013894,2]
[395044735,1764372450789,-500.0,0.00013894,2]
[395044736,1764372450815,-366.85045471,0.00013894,2]
[395044737,1764372460516,192.94392922,8.996e-05,2]
[395044749,1764372548099,-1832.99106275,0.000125,2]
[395044750,1764372548119,-192.94392922,0.00013041,2]
[395044751,1764372548141,-192.94392922,0.00013173,2]
[395044752,1764372548161,-623.67710875,0.00013755,2]
[395044753,1764372548187,-851.96476918,0.00013893,2]
[395044754,1764372548212,-851.96476918,0.00013893,2]
[395044755,1764372548240,-851.96476918,0.00013893,2]
[395044756,1764372548272,-851.96476918,0.00013893,2]
[395044757,1764372548298,-851.96476918,0.00013893,2]
[395044758,1764372548325,-851.96476918,0.00013893,2]
[395044759,1764372548351,-851.96476918,0.00013893,2]
[395044760,1764372548378,-851.96476918,0.00013893,2]
[395044761,1764372548405,-851.96476918,0.00013893,2]
[395044762,1764372548436,-851.96476918,0.00013893,2]
[395044763,1764372548462,-851.96476918,0.00013893,2]
[395044764,1764372548487,-851.96476918,0.00013893,2]
[395044765,1764372548512,-851.96476918,0.00013893,2]
[395044766,1764372548538,-851.96476918,0.00013893,2]
[395044767,1764372548564,-851.96476918,0.00013893,2]
[395044768,1764372548590,-851.96476918,0.00013893,2]
[395044769,1764372548616,-851.96476918,0.00013893,2]
[395044770,1764372548642,-851.96476918,0.00013893,2]
[395044771,1764372548668,-851.96476918,0.00013893,2]
[395044772,1764372548693,-851.96476918,0.00013893,2]
[395044773,1764372548718,-851.96476918,0.00013893,2]
[395044774,1764372548745,-851.96476918,0.00013893,2]
[395044775,1764372548769,-851.96476918,0.00013893,2]
[395044776,1764372548795,-851.96476918,0.00013893,2]
[395044777,1764372548820,-851.96476918,0.00013893,2]
[395044778,1764372548844,-851.96476918,0.00013893,2]
[395044779,1764372548870,-851.96476918,0.00013893,2]